[Event "*** Titled Tuesday Blitz"]
[Site "Chess.com"]
[Date "2021.03.16"]
[Round "3"]
[White "SF-96"]
[Black "Agnes66678"]
[Result "0-1"]
[WhiteElo "2592"]
[BlackElo "2425"]
[TimeControl "180+1"]
[EndTime "10:29:28 PDT"]
[Termination "Agnes66678 won by checkmate"]

1. e4 {[%clk 0:03:00]} 1... d6 {[%clk 0:02:59.2]} 2. d4 {[%clk 0:02:59.9]} 2...
Nf6 {[%clk 0:02:59.4]} 3. Nc3 {[%clk 0:03:00.5]} 3... e5 {[%clk 0:02:59.3]} 4.
Nf3 {[%clk 0:03:00.6]} 4... Nbd7 {[%clk 0:02:59]} 5. Bc4 {[%clk 0:03:01.3]} 5...
Be7 {[%clk 0:02:59.1]} 6. O-O {[%clk 0:03:01.9]} 6... O-O {[%clk 0:02:59.1]} 7.
Re1 {[%clk 0:03:02]} 7... c6 {[%clk 0:02:58.7]} 8. a4 {[%clk 0:03:02.4]} 8... a5
{[%clk 0:02:58.8]} 9. h3 {[%clk 0:02:58]} 9... Nb6 {[%clk 0:02:58.1]} 10. Ba2
{[%clk 0:02:52.3]} 10... Nfd7 {[%clk 0:02:55.8]} 11. Be3 {[%clk 0:02:43.2]}
11... exd4 {[%clk 0:02:55.1]} 12. Nxd4 {[%clk 0:02:39.1]} 12... Nc5 {[%clk
0:02:56]} 13. Nf5 {[%clk 0:02:13.8]} 13... Bxf5 {[%clk 0:02:54.8]} 14. exf5
{[%clk 0:02:14.7]} 14... Nbd7 {[%clk 0:02:51.7]} 15. Qd2 {[%clk 0:01:50.9]}
15... d5 {[%clk 0:02:48.2]} 16. Rad1 {[%clk 0:01:46.7]} 16... Bf6 {[%clk
0:02:44.4]} 17. Bf4 {[%clk 0:01:24]} 17... Qb6 {[%clk 0:02:36]} 18. Rb1 {[%clk
0:01:10.8]} 18... Rfe8 {[%clk 0:02:34.8]} 19. Bg3 {[%clk 0:01:00.2]} 19... Qb4
{[%clk 0:02:29.6]} 20. Bd6 {[%clk 0:00:32.8]} 20... d4 {[%clk 0:02:02.1]} 21.
Rxe8+ {[%clk 0:00:24.9]} 21... Rxe8 {[%clk 0:02:01]} 22. Re1 {[%clk 0:00:25.7]}
22... Rd8 {[%clk 0:01:16.1]} 23. Ne4 {[%clk 0:00:23.4]} 23... Qxd2 {[%clk
0:01:15.8]} 24. Nxd2 {[%clk 0:00:23.7]} 24... Nxa4 {[%clk 0:01:15.4]} 25. Nc4
{[%clk 0:00:18.7]} 25... Ra8 {[%clk 0:00:52.5]} 26. Bc7 {[%clk 0:00:14.7]} 26...
h5 {[%clk 0:00:44.4]} 27. Nd6 {[%clk 0:00:14.1]} 27... Nxb2 {[%clk 0:00:24.8]}
28. Bxf7+ {[%clk 0:00:13.8]} 28... Kh8 {[%clk 0:00:22.2]} 29. Bxh5 {[%clk
0:00:12.4]} 29... a4 {[%clk 0:00:16.6]} 30. Be8 {[%clk 0:00:11.4]} 30... Ne5
{[%clk 0:00:13.9]} 31. Nf7+ {[%clk 0:00:05.4]} 31... Nxf7 {[%clk 0:00:13.2]} 32.
Bxf7 {[%clk 0:00:06.3]} 32... a3 {[%clk 0:00:13.4]} 33. Ba2 {[%clk 0:00:07]}
33... Rc8 {[%clk 0:00:12.5]} 34. Bd6 {[%clk 0:00:06.1]} 34... c5 {[%clk
0:00:12.7]} 35. f4 {[%clk 0:00:04.3]} 35... c4 {[%clk 0:00:12.7]} 36. Bxa3
{[%clk 0:00:04.4]} 36... c3 {[%clk 0:00:12.3]} 37. Bb3 {[%clk 0:00:03.9]} 37...
d3 {[%clk 0:00:11.7]} 38. cxd3 {[%clk 0:00:04.1]} 38... Ra8 {[%clk 0:00:11.3]}
39. Bxb2 {[%clk 0:00:04]} 39... cxb2 {[%clk 0:00:12.2]} 40. Rb1 {[%clk
0:00:04.7]} 40... Ra1 {[%clk 0:00:11.7]} 41. Bc2 {[%clk 0:00:05.4]} 41... Ra3
{[%clk 0:00:11.4]} 42. Kf1 {[%clk 0:00:05.5]} 42... b5 {[%clk 0:00:10.2]} 43.
Ke2 {[%clk 0:00:05.5]} 43... b4 {[%clk 0:00:10.5]} 44. Kd2 {[%clk 0:00:05.1]}
44... b3 {[%clk 0:00:10.5]} 45. g4 {[%clk 0:00:03.1]} 45... bxc2 {[%clk
0:00:10.2]} 46. Kxc2 {[%clk 0:00:04]} 46... Rc3+ {[%clk 0:00:10.3]} 47. Kd2
{[%clk 0:00:04.3]} 47... Rc6 {[%clk 0:00:08.8]} 48. g5 {[%clk 0:00:04.5]} 48...
Bd4 {[%clk 0:00:09.2]} 49. h4 {[%clk 0:00:03.4]} 49... Kg8 {[%clk 0:00:09.3]}
50. h5 {[%clk 0:00:03.2]} 50... Kf7 {[%clk 0:00:10.2]} 51. g6+ {[%clk
0:00:03.3]} 51... Kf6 {[%clk 0:00:10.3]} 52. h6 {[%clk 0:00:03.1]} 52... gxh6
{[%clk 0:00:09.8]} 53. Rg1 {[%clk 0:00:04]} 53... Kxf5 {[%clk 0:00:09.8]} 54. g7
{[%clk 0:00:04.4]} 54... Bxg7 {[%clk 0:00:09.8]} 55. Rxg7 {[%clk 0:00:03]} 55...
b1=Q {[%clk 0:00:10.1]} 56. Rf7+ {[%clk 0:00:03.9]} 56... Ke6 {[%clk 0:00:10.4]}
57. Rh7 {[%clk 0:00:04.2]} 57... Qc2+ {[%clk 0:00:10]} 58. Ke3 {[%clk
0:00:04.5]} 58... Qc1+ {[%clk 0:00:10.9]} 59. Ke4 {[%clk 0:00:04.6]} 59... Rc2
{[%clk 0:00:11.4]} 60. Kf3 {[%clk 0:00:05.5]} 60... Kd5 {[%clk 0:00:11.4]} 61.
Rd7+ {[%clk 0:00:05.5]} 61... Ke6 {[%clk 0:00:11.3]} 62. Rh7 {[%clk 0:00:05.4]}
62... Qf1+ {[%clk 0:00:11.3]} 63. Ke3 {[%clk 0:00:06]} 63... Re2+ {[%clk
0:00:11.5]} 64. Kd4 {[%clk 0:00:06.4]} 64... Qxf4+ {[%clk 0:00:12]} 65. Kc3
{[%clk 0:00:07.3]} 65... Qd2+ {[%clk 0:00:09.8]} 66. Kc4 {[%clk 0:00:08.2]}
66... Qc2+ {[%clk 0:00:09.5]} 67. Kd4 {[%clk 0:00:08.7]} 67... Qb2+ {[%clk
0:00:09.6]} 68. Kc4 {[%clk 0:00:08.9]} 68... Rc2# {[%clk 0:00:09.8]} 0-1

[Event "*** Titled Tuesday Blitz"]
[Site "Chess.com"]
[Date "2021.03.16"]
[Round "3"]
[White "alexrustemov"]
[Black "Beltraxtor"]
[Result "0-1"]
[WhiteElo "2782"]
[BlackElo "2595"]
[TimeControl "180+1"]
[EndTime "10:29:34 PDT"]
[Termination "Beltraxtor won on time"]

1. d4 {[%clk 0:03:00.9]} 1... d5 {[%clk 0:02:57.7]} 2. Nf3 {[%clk 0:03:00.3]}
2... Nf6 {[%clk 0:02:57.3]} 3. c4 {[%clk 0:02:59.5]} 3... c6 {[%clk 0:02:56.9]}
4. e3 {[%clk 0:02:59.6]} 4... Bf5 {[%clk 0:02:54.8]} 5. Nc3 {[%clk 0:02:56.3]}
5... a6 {[%clk 0:02:54.1]} 6. Nh4 {[%clk 0:02:53.7]} 6... Bc8 {[%clk 0:02:42]}
7. Bd3 {[%clk 0:02:47.4]} 7... b5 {[%clk 0:02:41.1]} 8. c5 {[%clk 0:02:40.6]}
8... g6 {[%clk 0:02:12.7]} 9. f4 {[%clk 0:02:39.7]} 9... Bg7 {[%clk 0:02:09.4]}
10. O-O {[%clk 0:02:39]} 10... O-O {[%clk 0:01:58.5]} 11. a3 {[%clk 0:02:37.3]}
11... Bg4 {[%clk 0:01:45]} 12. Qc2 {[%clk 0:02:35.8]} 12... a5 {[%clk
0:01:24.8]} 13. Bd2 {[%clk 0:02:33.6]} 13... Na6 {[%clk 0:01:22.3]} 14. h3
{[%clk 0:02:30.5]} 14... Bd7 {[%clk 0:01:22.2]} 15. Nf3 {[%clk 0:02:27.1]} 15...
Nh5 {[%clk 0:01:14.9]} 16. g4 {[%clk 0:02:19.6]} 16... Ng3 {[%clk 0:01:12.6]}
17. Rf2 {[%clk 0:02:17.4]} 17... f5 {[%clk 0:01:12.9]} 18. g5 {[%clk 0:02:06.5]}
18... Ne4 {[%clk 0:01:12.6]} 19. Rh2 {[%clk 0:02:05.3]} 19... Kf7 {[%clk
0:00:58.4]} 20. Ne2 {[%clk 0:02:00.9]} 20... Nc7 {[%clk 0:00:50.3]} 21. h4
{[%clk 0:01:59.9]} 21... Ne6 {[%clk 0:00:41.4]} 22. Kg2 {[%clk 0:01:58.4]} 22...
Bc8 {[%clk 0:00:36.3]} 23. h5 {[%clk 0:01:57]} 23... Ke8 {[%clk 0:00:36.5]} 24.
Rah1 {[%clk 0:01:54.6]} 24... Kd7 {[%clk 0:00:36.7]} 25. hxg6 {[%clk 0:01:49.5]}
25... hxg6 {[%clk 0:00:37.6]} 26. Rh7 {[%clk 0:01:49.2]} 26... Rg8 {[%clk
0:00:33.1]} 27. Be1 {[%clk 0:01:28.3]} 27... Qf8 {[%clk 0:00:30.9]} 28. Nh4
{[%clk 0:01:11.7]} 28... Qf7 {[%clk 0:00:26.3]} 29. Ng1 {[%clk 0:01:04]} 29...
Nf8 {[%clk 0:00:25.8]} 30. Rxg7 {[%clk 0:00:58.9]} 30... Qxg7 {[%clk 0:00:26.7]}
31. Ngf3 {[%clk 0:00:58.3]} 31... Bb7 {[%clk 0:00:24]} 32. Ne5+ {[%clk 0:00:58]}
32... Kc7 {[%clk 0:00:23.3]} 33. Bxe4 {[%clk 0:00:47.7]} 33... fxe4 {[%clk
0:00:22.5]} 34. Bd2 {[%clk 0:00:43.6]} 34... Bc8 {[%clk 0:00:21.3]} 35. Qd1
{[%clk 0:00:43.7]} 35... Be6 {[%clk 0:00:19.6]} 36. Qe1 {[%clk 0:00:43.8]} 36...
Rh8 {[%clk 0:00:18]} 37. Bxa5+ {[%clk 0:00:43.3]} 37... Kb7 {[%clk 0:00:18.6]}
38. Bd2 {[%clk 0:00:38.4]} 38... Rh5 {[%clk 0:00:14.8]} 39. Qe2 {[%clk
0:00:31.5]} 39... Qh7 {[%clk 0:00:12.3]} 40. Be1 {[%clk 0:00:31.7]} 40... Nd7
{[%clk 0:00:10.8]} 41. Nexg6 {[%clk 0:00:30]} 41... Rg8 {[%clk 0:00:10.5]} 42.
Ne5 {[%clk 0:00:26.7]} 42... Nxe5 {[%clk 0:00:09.8]} 43. dxe5 {[%clk 0:00:27]}
43... Bf5 {[%clk 0:00:08.8]} 44. Bg3 {[%clk 0:00:26.5]} 44... e6 {[%clk
0:00:09]} 45. Qe1 {[%clk 0:00:25.8]} 45... Bg4 {[%clk 0:00:08.7]} 46. Rh2 {[%clk
0:00:22.2]} 46... Rh8 {[%clk 0:00:08.7]} 47. Qa5 {[%clk 0:00:21.7]} 47... Qc7
{[%clk 0:00:07.3]} 48. Qb4 {[%clk 0:00:21]} 48... Qd8 {[%clk 0:00:06.4]} 49. Kf2
{[%clk 0:00:20.6]} 49... Qc7 {[%clk 0:00:06.1]} 50. Kg1 {[%clk 0:00:20.9]} 50...
Ra8 {[%clk 0:00:06.6]} 51. b3 {[%clk 0:00:20.9]} 51... Qa5 {[%clk 0:00:06.7]}
52. Be1 {[%clk 0:00:13.1]} 52... Qxa3 {[%clk 0:00:06.2]} 53. Ng2 {[%clk
0:00:12.2]} 53... Qxb4 {[%clk 0:00:05.2]} 54. Bxb4 {[%clk 0:00:11.1]} 54... Rxh2
{[%clk 0:00:04.3]} 55. Kxh2 {[%clk 0:00:11]} 55... Bf3 {[%clk 0:00:05.1]} 56.
Kg3 {[%clk 0:00:10.7]} 56... Bxg2 {[%clk 0:00:05.1]} 57. Kxg2 {[%clk 0:00:10.6]}
57... Kc7 {[%clk 0:00:06]} 58. Kg3 {[%clk 0:00:10]} 58... Kd7 {[%clk 0:00:06.9]}
59. Kg4 {[%clk 0:00:08.4]} 59... Ke7 {[%clk 0:00:07.5]} 60. f5 {[%clk
0:00:07.9]} 60... exf5+ {[%clk 0:00:07]} 61. Kxf5 {[%clk 0:00:08.8]} 61... Rf8+
{[%clk 0:00:07.7]} 62. Kg6 {[%clk 0:00:09.2]} 62... Ke6 {[%clk 0:00:08]} 63. Bc3
{[%clk 0:00:09.3]} 63... Rg8+ {[%clk 0:00:07.9]} 64. Kh6 {[%clk 0:00:09.5]}
64... Kf5 {[%clk 0:00:08.2]} 65. e6 {[%clk 0:00:08.7]} 65... Rg6+ {[%clk
0:00:07.9]} 66. Kh5 {[%clk 0:00:06.9]} 66... Rxg5+ {[%clk 0:00:08.4]} 67. Kh4
{[%clk 0:00:05.5]} 67... Rg8 {[%clk 0:00:08.8]} 68. e7 {[%clk 0:00:05.4]} 68...
Re8 {[%clk 0:00:09.3]} 0-1

[Event "*** Titled Tuesday Blitz"]
[Site "Chess.com"]
[Date "2021.03.16"]
[Round "3"]
[White "Taran2004"]
[Black "Skatchkov_V"]
[Result "1-0"]
[WhiteElo "2427"]
[BlackElo "2605"]
[TimeControl "180+1"]
[EndTime "10:29:35 PDT"]
[Termination "Taran2004 won by resignation"]

1. e4 {[%clk 0:03:00.9]} 1... e5 {[%clk 0:02:47]} 2. Nf3 {[%clk 0:03:00.5]} 2...
d5 {[%clk 0:02:47.4]} 3. exd5 {[%clk 0:02:57.5]} 3... e4 {[%clk 0:02:48.3]} 4.
Nd4 {[%clk 0:02:57.9]} 4... Qxd5 {[%clk 0:02:48.5]} 5. Nb3 {[%clk 0:02:58.4]}
5... Qe5 {[%clk 0:02:49.2]} 6. Nc3 {[%clk 0:02:57.5]} 6... Nf6 {[%clk 0:02:50]}
7. Bc4 {[%clk 0:02:52.2]} 7... Bd6 {[%clk 0:02:50]} 8. g3 {[%clk 0:02:39.8]}
8... Bg4 {[%clk 0:02:40.9]} 9. Be2 {[%clk 0:02:39]} 9... Bf3 {[%clk 0:02:41.1]}
10. O-O {[%clk 0:02:39.1]} 10... Qh5 {[%clk 0:02:21]} 11. Bxf3 {[%clk 0:02:23]}
11... exf3 {[%clk 0:02:21.9]} 12. Re1+ {[%clk 0:02:23.5]} 12... Kd8 {[%clk
0:02:18.4]} 13. Nd4 {[%clk 0:02:23.4]} 13... Ng4 {[%clk 0:01:58.2]} 14. Nxf3
{[%clk 0:02:21.7]} 14... Nc6 {[%clk 0:01:52]} 15. Kg2 {[%clk 0:02:19.6]} 15...
Kd7 {[%clk 0:01:49.8]} 16. h3 {[%clk 0:02:19.1]} 16... Nxf2 {[%clk 0:01:45.5]}
17. Kxf2 {[%clk 0:02:15.4]} 17... Qxh3 {[%clk 0:01:45.6]} 18. Ne4 {[%clk
0:02:13.2]} 18... Ne5 {[%clk 0:01:32.4]} 19. Nxe5+ {[%clk 0:01:54.9]} 19... Bxe5
{[%clk 0:01:33.3]} 20. Qf3 {[%clk 0:01:52.8]} 20... Bd4+ {[%clk 0:01:27.8]} 21.
Ke2 {[%clk 0:01:50]} 21... Rae8 {[%clk 0:01:27.2]} 22. Kd3 {[%clk 0:01:40.9]}
22... Bb6 {[%clk 0:01:05.6]} 23. c3 {[%clk 0:01:10.1]} 23... Kc8 {[%clk
0:00:58.5]} 24. Kc2 {[%clk 0:01:00.5]} 24... f6 {[%clk 0:00:58.8]} 25. d3 {[%clk
0:00:58.2]} 25... f5 {[%clk 0:00:57]} 26. Ng5 {[%clk 0:00:43.1]} 26... Qh2+
{[%clk 0:00:53.9]} 27. Bd2 {[%clk 0:00:43.3]} 27... g6 {[%clk 0:00:40.4]} 28.
Rxe8+ {[%clk 0:00:37.7]} 28... Rxe8 {[%clk 0:00:41.3]} 29. Rh1 {[%clk
0:00:37.6]} 29... Qe2 {[%clk 0:00:40.3]} 30. Qxe2 {[%clk 0:00:37.3]} 30... Rxe2
{[%clk 0:00:41.2]} 31. Kd1 {[%clk 0:00:37.8]} 31... Rg2 {[%clk 0:00:41.2]} 32.
Rxh7 {[%clk 0:00:30.5]} 32... Rxg3 {[%clk 0:00:41.5]} 33. Rg7 {[%clk 0:00:28.4]}
33... Rg2 {[%clk 0:00:33.7]} 34. Rxg6 {[%clk 0:00:27.7]} 34... f4 {[%clk
0:00:33.3]} 35. Bxf4 {[%clk 0:00:27.1]} 35... Rxb2 {[%clk 0:00:33.4]} 36. Rg7
{[%clk 0:00:25.4]} 36... Rxa2 {[%clk 0:00:33.3]} 37. Ne6 {[%clk 0:00:25.6]}
37... c6 {[%clk 0:00:33.1]} 38. Bd6 {[%clk 0:00:22.2]} 38... a5 {[%clk
0:00:28.9]} 39. Nc5 {[%clk 0:00:22.1]} 39... Bxc5 {[%clk 0:00:25]} 40. Bxc5
{[%clk 0:00:23]} 40... a4 {[%clk 0:00:25.2]} 41. Rg4 {[%clk 0:00:22.1]} 41... b5
{[%clk 0:00:25.8]} 42. c4 {[%clk 0:00:20.9]} 42... Rb2 {[%clk 0:00:20.1]} 43.
cxb5 {[%clk 0:00:20.1]} 43... cxb5 {[%clk 0:00:21]} 44. Rb4 {[%clk 0:00:20.6]}
44... Rg2 {[%clk 0:00:08.9]} 45. Rxb5 {[%clk 0:00:19.6]} 45... Kd7 {[%clk
0:00:08.9]} 46. Ra5 {[%clk 0:00:18.6]} 46... Ra2 {[%clk 0:00:09.3]} 47. d4
{[%clk 0:00:18.5]} 47... Kc6 {[%clk 0:00:09.9]} 48. Kc1 {[%clk 0:00:19]} 48...
Kd5 {[%clk 0:00:09.7]} 49. Kb1 {[%clk 0:00:19.3]} 49... Rh2 {[%clk 0:00:07.3]}
50. Rxa4 {[%clk 0:00:19.6]} 50... Rh1+ {[%clk 0:00:07.8]} 51. Ka2 {[%clk
0:00:19.5]} 51... Rh2+ {[%clk 0:00:08.7]} 52. Kb3 {[%clk 0:00:20.1]} 52... Rh3+
{[%clk 0:00:09.6]} 53. Kb4 {[%clk 0:00:20.1]} 53... Rh8 {[%clk 0:00:10.5]} 54.
Ra6 {[%clk 0:00:18.9]} 54... Rd8 {[%clk 0:00:09.8]} 55. Kb5 {[%clk 0:00:17.3]}
55... Rb8+ {[%clk 0:00:09.9]} 56. Rb6 {[%clk 0:00:17.5]} 56... Rd8 {[%clk
0:00:10.8]} 57. Rb7 {[%clk 0:00:17.4]} 57... Ra8 {[%clk 0:00:07.7]} 58. Rd7+
{[%clk 0:00:17.3]} 58... Ke6 {[%clk 0:00:08.6]} 59. Rd6+ {[%clk 0:00:17.3]}
59... Ke7 {[%clk 0:00:09.5]} 60. Kc6 {[%clk 0:00:17.8]} 60... Ra6+ {[%clk
0:00:09.6]} 61. Kd5 {[%clk 0:00:18.2]} 61... Ra1 {[%clk 0:00:09.7]} 62. Re6+
{[%clk 0:00:17.3]} 62... Kd7 {[%clk 0:00:10.6]} 63. Rh6 {[%clk 0:00:16.8]} 63...
Rf1 {[%clk 0:00:10.4]} 64. Rh7+ {[%clk 0:00:17.1]} 64... Kd8 {[%clk 0:00:11.3]}
65. Kc6 {[%clk 0:00:16.8]} 65... Rf6+ {[%clk 0:00:11.4]} 66. Bd6 {[%clk
0:00:17.5]} 66... Kc8 {[%clk 0:00:08.4]} 67. Rh8+ {[%clk 0:00:17.2]} 1-0

[Event "*** Titled Tuesday Blitz"]
[Site "Chess.com"]
[Date "2021.03.16"]
[Round "3"]
[White "olksuna"]
[Black "GMaka"]
[Result "1/2-1/2"]
[WhiteElo "2671"]
[BlackElo "2455"]
[TimeControl "180+1"]
[EndTime "10:29:36 PDT"]
[Termination "Game drawn - insufficient material"]

1. e4 {[%clk 0:03:00.9]} 1... c6 {[%clk 0:02:59.9]} 2. Nf3 {[%clk 0:03:00.1]}
2... d5 {[%clk 0:03:00.8]} 3. Nc3 {[%clk 0:02:59.3]} 3... Bg4 {[%clk 0:03:01.3]}
4. h3 {[%clk 0:02:58.6]} 4... Bxf3 {[%clk 0:03:01.7]} 5. Qxf3 {[%clk 0:02:59.1]}
5... e6 {[%clk 0:03:02.4]} 6. d4 {[%clk 0:02:58.6]} 6... Bb4 {[%clk 0:02:58.3]}
7. Qg3 {[%clk 0:02:53]} 7... g6 {[%clk 0:02:36.8]} 8. Bd2 {[%clk 0:02:45.6]}
8... Nf6 {[%clk 0:02:27.6]} 9. exd5 {[%clk 0:02:44.1]} 9... cxd5 {[%clk
0:02:15.9]} 10. Bd3 {[%clk 0:02:26.8]} 10... Nc6 {[%clk 0:02:15.8]} 11. a3
{[%clk 0:02:13]} 11... Bd6 {[%clk 0:02:08.6]} 12. Qh4 {[%clk 0:02:12.9]} 12...
Be7 {[%clk 0:02:00.1]} 13. Qf4 {[%clk 0:01:52.9]} 13... Qd6 {[%clk 0:01:45.1]}
14. Qxd6 {[%clk 0:01:46.4]} 14... Bxd6 {[%clk 0:01:46]} 15. Ne2 {[%clk 0:01:45]}
15... Ne4 {[%clk 0:01:34.6]} 16. Be3 {[%clk 0:01:40.9]} 16... f5 {[%clk
0:01:30.7]} 17. O-O {[%clk 0:01:32.6]} 17... O-O {[%clk 0:01:29.4]} 18. f3
{[%clk 0:01:23.1]} 18... Ng3 {[%clk 0:01:26.9]} 19. Rfe1 {[%clk 0:01:23.6]}
19... Nxe2+ {[%clk 0:01:22.5]} 20. Rxe2 {[%clk 0:01:22.6]} 20... Bg3 {[%clk
0:01:23]} 21. c3 {[%clk 0:01:20.5]} 21... a6 {[%clk 0:01:15.8]} 22. Rf1 {[%clk
0:01:13.4]} 22... Rae8 {[%clk 0:01:06.4]} 23. Bf2 {[%clk 0:00:55.4]} 23... Bxf2+
{[%clk 0:01:03.3]} 24. Kxf2 {[%clk 0:00:56.3]} 24... e5 {[%clk 0:01:01.3]} 25.
dxe5 {[%clk 0:00:53.6]} 25... Nxe5 {[%clk 0:01:02.2]} 26. Rd1 {[%clk 0:00:52.6]}
26... Nc6 {[%clk 0:00:49.8]} 27. Rxe8 {[%clk 0:00:48.5]} 27... Rxe8 {[%clk
0:00:50.7]} 28. Bb1 {[%clk 0:00:48.8]} 28... Rd8 {[%clk 0:00:42.4]} 29. Ba2
{[%clk 0:00:47.9]} 29... Ne7 {[%clk 0:00:42.9]} 30. Ke3 {[%clk 0:00:40.6]} 30...
Kf7 {[%clk 0:00:38.7]} 31. Kd4 {[%clk 0:00:40.9]} 31... Ke6 {[%clk 0:00:39]} 32.
Kc5 {[%clk 0:00:39.7]} 32... Rd6 {[%clk 0:00:36.4]} 33. Re1+ {[%clk 0:00:34.9]}
33... Kd7 {[%clk 0:00:36.7]} 34. Kd4 {[%clk 0:00:20.4]} 34... Nc6+ {[%clk
0:00:35.8]} 35. Ke3 {[%clk 0:00:20.3]} 35... Re6+ {[%clk 0:00:34.9]} 36. Kd2
{[%clk 0:00:20.3]} 36... Rxe1 {[%clk 0:00:35.8]} 37. Kxe1 {[%clk 0:00:21.2]}
37... Kd6 {[%clk 0:00:34.9]} 38. f4 {[%clk 0:00:21.1]} 38... Kc5 {[%clk
0:00:27.6]} 39. Kd2 {[%clk 0:00:21]} 39... a5 {[%clk 0:00:26.4]} 40. a4 {[%clk
0:00:19.5]} 40... Nd8 {[%clk 0:00:19.4]} 41. Ke3 {[%clk 0:00:15.4]} 41... Nf7
{[%clk 0:00:18.7]} 42. g3 {[%clk 0:00:16]} 42... Nd6 {[%clk 0:00:19]} 43. Kd3
{[%clk 0:00:12.4]} 43... Ne4 {[%clk 0:00:18.4]} 44. g4 {[%clk 0:00:13]} 44...
fxg4 {[%clk 0:00:15.1]} 45. hxg4 {[%clk 0:00:12.4]} 45... Nf2+ {[%clk
0:00:15.6]} 46. Ke2 {[%clk 0:00:12.5]} 46... Nxg4 {[%clk 0:00:16.5]} 47. Kf3
{[%clk 0:00:13.1]} 47... Nf6 {[%clk 0:00:16.8]} 48. Bb1 {[%clk 0:00:13.2]} 48...
Kc4 {[%clk 0:00:15.3]} 49. Bc2 {[%clk 0:00:11.7]} 49... d4 {[%clk 0:00:14.2]}
50. cxd4 {[%clk 0:00:10.3]} 50... Kxd4 {[%clk 0:00:15.1]} 51. Bb3 {[%clk
0:00:09.9]} 51... b6 {[%clk 0:00:14.8]} 52. Be6 {[%clk 0:00:09]} 52... Kc5
{[%clk 0:00:13.5]} 53. Ke3 {[%clk 0:00:06.9]} 53... Kb4 {[%clk 0:00:12.9]} 54.
Kd4 {[%clk 0:00:07.2]} 54... Kxa4 {[%clk 0:00:09.1]} 55. Ke5 {[%clk 0:00:05.8]}
55... Ne8 {[%clk 0:00:08.4]} 56. Bg8 {[%clk 0:00:04.2]} 56... Kb4 {[%clk
0:00:05.8]} 57. Bxh7 {[%clk 0:00:03.3]} 57... Ng7 {[%clk 0:00:04.9]} 58. Bxg6
{[%clk 0:00:03]} 58... Kb3 {[%clk 0:00:04.5]} 59. Kf6 {[%clk 0:00:03.4]} 59...
Kxb2 {[%clk 0:00:04]} 60. Kxg7 {[%clk 0:00:03.6]} 60... a4 {[%clk 0:00:04.9]}
61. Bf7 {[%clk 0:00:02.8]} 61... b5 {[%clk 0:00:05.3]} 62. f5 {[%clk 0:00:03.2]}
62... b4 {[%clk 0:00:06.2]} 63. f6 {[%clk 0:00:03.8]} 63... a3 {[%clk
0:00:06.4]} 64. Bd5 {[%clk 0:00:03.4]} 64... b3 {[%clk 0:00:06.4]} 65. Bxb3
{[%clk 0:00:01.5]} 65... a2 {[%clk 0:00:07.3]} 66. f7 {[%clk 0:00:02.1]} 66...
Kxb3 {[%clk 0:00:07.3]} 67. f8=Q {[%clk 0:00:03]} 67... a1=Q+ {[%clk 0:00:07.3]}
68. Kg8 {[%clk 0:00:02.7]} 68... Qg1+ {[%clk 0:00:06.5]} 69. Qg7 {[%clk
0:00:03.1]} 69... Qxg7+ {[%clk 0:00:06.3]} 70. Kxg7 {[%clk 0:00:04]} 1/2-1/2